[Event "*** Titled Tuesday Blitz"]
[Site "Chess.com"]
[Date "2020.04.07"]
[Round "2"]
[White "Anna_ChessMate"]
[Black "ChessBitl"]
[Result "1-0"]
[WhiteElo "2615"]
[BlackElo "2320"]
[TimeControl "180+1"]
[EndTime "13:18:04 PDT"]
[Termination "Anna_ChessMate won by resignation"]

1. d4 {[%clk 0:03:00]} 1... d5 {[%clk 0:02:58.6]} 2. c4 {[%clk 0:02:59.9]} 2...
dxc4 {[%clk 0:02:58.8]} 3. Nf3 {[%clk 0:02:59.6]} 3... Nf6 {[%clk 0:02:57.8]} 4.
e3 {[%clk 0:02:58.5]} 4... e6 {[%clk 0:02:58.2]} 5. Bxc4 {[%clk 0:02:58.7]} 5...
a6 {[%clk 0:02:58.9]} 6. O-O {[%clk 0:02:58.4]} 6... c5 {[%clk 0:02:57.8]} 7.
Qe2 {[%clk 0:02:56]} 7... b5 {[%clk 0:02:56]} 8. Bd3 {[%clk 0:02:56.3]} 8... Bb7
{[%clk 0:02:55.3]} 9. b3 {[%clk 0:02:55.9]} 9... cxd4 {[%clk 0:02:46.9]} 10.
Nxd4 {[%clk 0:02:49.2]} 10... Nc6 {[%clk 0:02:43.9]} 11. Nxc6 {[%clk 0:02:47.3]}
11... Bxc6 {[%clk 0:02:43]} 12. Bb2 {[%clk 0:02:48]} 12... Be7 {[%clk 0:02:42]}
13. Nc3 {[%clk 0:02:47.2]} 13... O-O {[%clk 0:02:41.2]} 14. Rfd1 {[%clk
0:02:46]} 14... Qb6 {[%clk 0:02:40.6]} 15. a4 {[%clk 0:02:42.5]} 15... b4 {[%clk
0:02:39.1]} 16. Nb1 {[%clk 0:02:38.4]} 16... Rfd8 {[%clk 0:02:28.6]} 17. Nd2
{[%clk 0:02:36.4]} 17... a5 {[%clk 0:02:19.4]} 18. Nc4 {[%clk 0:02:36.2]} 18...
Qb7 {[%clk 0:02:18.3]} 19. f3 {[%clk 0:02:34.1]} 19... Bc5 {[%clk 0:02:10.8]}
20. Kh1 {[%clk 0:02:33.4]} 20... Nd5 {[%clk 0:02:08.3]} 21. Rac1 {[%clk
0:02:29.7]} 21... Nc3 {[%clk 0:02:00.5]} 22. Bxc3 {[%clk 0:02:28.3]} 22... bxc3
{[%clk 0:02:01.4]} 23. Rxc3 {[%clk 0:02:25.1]} 23... Bb4 {[%clk 0:01:56.7]} 24.
Rcc1 {[%clk 0:02:24.4]} 24... Bd5 {[%clk 0:01:55]} 25. e4 {[%clk 0:02:22.3]}
25... Bc6 {[%clk 0:01:54.6]} 26. Ne5 {[%clk 0:02:22.3]} 26... Be8 {[%clk
0:01:50.3]} 27. Bc4 {[%clk 0:02:19.9]} 27... Ba3 {[%clk 0:01:43.5]} 28. Rb1
{[%clk 0:02:16]} 28... Qc7 {[%clk 0:01:38.5]} 29. Ng4 {[%clk 0:02:12.2]} 29...
Bc5 {[%clk 0:01:33.7]} 30. g3 {[%clk 0:02:00.9]} 30... h5 {[%clk 0:01:30.6]} 31.
Nf2 {[%clk 0:01:59.5]} 31... h4 {[%clk 0:01:29.2]} 32. Kg2 {[%clk 0:01:59.3]}
32... Bc6 {[%clk 0:01:21.7]} 33. Nd3 {[%clk 0:01:57.1]} 33... Bb6 {[%clk
0:01:16.1]} 34. Nf4 {[%clk 0:01:54.8]} 34... Qe5 {[%clk 0:01:07.1]} 35. Nd3
{[%clk 0:01:37.4]} 35... Qc7 {[%clk 0:01:01.2]} 36. Rbc1 {[%clk 0:01:36.3]}
36... Qe7 {[%clk 0:00:57.9]} 37. Ne5 {[%clk 0:01:34.3]} 37... Be8 {[%clk
0:00:53.1]} 38. Bb5 {[%clk 0:01:32.8]} 38... Qb4 {[%clk 0:00:44.4]} 39. Bxe8
{[%clk 0:01:26.7]} 39... Rxe8 {[%clk 0:00:43.1]} 40. Qc4 {[%clk 0:01:27]} 40...
Qd6 {[%clk 0:00:38.8]} 41. Rxd6 {[%clk 0:01:26.5]} 1-0

[Event "*** Titled Tuesday Blitz"]
[Site "Chess.com"]
[Date "2020.04.07"]
[Round "2"]
[White "malandragem"]
[Black "piscatorox"]
[Result "1-0"]
[WhiteElo "2475"]
[BlackElo "2234"]
[TimeControl "180+1"]
[EndTime "13:18:07 PDT"]
[Termination "malandragem won by resignation"]

1. d4 {[%clk 0:03:00.9]} 1... Nf6 {[%clk 0:02:59.4]} 2. c4 {[%clk 0:03:00.5]}
2... g6 {[%clk 0:02:59.8]} 3. Nc3 {[%clk 0:02:59.8]} 3... Bg7 {[%clk 0:03:00.2]}
4. e4 {[%clk 0:02:59.8]} 4... d6 {[%clk 0:03:00.3]} 5. f3 {[%clk 0:02:55.1]}
5... O-O {[%clk 0:03:00.3]} 6. Be3 {[%clk 0:02:55.4]} 6... e5 {[%clk 0:02:58.9]}
7. Nge2 {[%clk 0:02:54.6]} 7... a5 {[%clk 0:02:43]} 8. Qd2 {[%clk 0:02:53.7]}
8... a4 {[%clk 0:02:42.6]} 9. g4 {[%clk 0:02:52.4]} 9... a3 {[%clk 0:02:39.3]}
10. b3 {[%clk 0:02:45]} 10... exd4 {[%clk 0:02:27.5]} 11. Nxd4 {[%clk
0:02:45.9]} 11... Nc6 {[%clk 0:02:06.2]} 12. h4 {[%clk 0:02:41.5]} 12... Bxg4
{[%clk 0:01:49.8]} 13. fxg4 {[%clk 0:02:37.9]} 13... Nxg4 {[%clk 0:01:49.7]} 14.
Nxc6 {[%clk 0:02:38.2]} 14... bxc6 {[%clk 0:01:46.4]} 15. Bf4 {[%clk 0:02:26]}
15... Qf6 {[%clk 0:01:01.3]} 16. Rc1 {[%clk 0:02:12.2]} 16... Rfe8 {[%clk
0:01:00.6]} 17. Kd1 {[%clk 0:02:02.6]} 17... Bh6 {[%clk 0:00:31.3]} 18. Bxh6
{[%clk 0:01:38.6]} 18... Nf2+ {[%clk 0:00:31.6]} 19. Kc2 {[%clk 0:01:34.8]}
19... Nxh1 {[%clk 0:00:26.2]} 20. Bg5 {[%clk 0:01:34.1]} 20... Qe5 {[%clk
0:00:21.5]} 21. Bd3 {[%clk 0:01:26.7]} 21... Ng3 {[%clk 0:00:12.5]} 22. Bf4
{[%clk 0:01:27]} 22... Nxe4 {[%clk 0:00:12.3]} 23. Bxe4 {[%clk 0:01:24]} 23...
Qh5 {[%clk 0:00:12.8]} 24. Bg5 {[%clk 0:01:18]} 24... Ra5 {[%clk 0:00:11.1]} 25.
Rf1 {[%clk 0:01:12.5]} 25... d5 {[%clk 0:00:11.1]} 26. Bf3 {[%clk 0:01:12.5]}
26... dxc4 {[%clk 0:00:09.1]} 27. Bxh5 {[%clk 0:01:07.7]} 27... cxb3+ {[%clk
0:00:10]} 28. axb3 {[%clk 0:01:08.1]} 28... a2 {[%clk 0:00:08.9]} 29. Kb2 {[%clk
0:01:03.9]} 1-0

[Event "*** Titled Tuesday Blitz"]
[Site "Chess.com"]
[Date "2020.04.07"]
[Round "2"]
[White "SmirnovAlexandrA"]
[Black "adricalderon8"]
[Result "1/2-1/2"]
[WhiteElo "2196"]
[BlackElo "2437"]
[TimeControl "180+1"]
[EndTime "13:18:10 PDT"]
[Termination "Game drawn by agreement"]

1. e4 {[%clk 0:03:00.9]} 1... c5 {[%clk 0:02:59.9]} 2. Nf3 {[%clk 0:03:00.4]}
2... Nc6 {[%clk 0:03:00.2]} 3. d4 {[%clk 0:02:59.1]} 3... cxd4 {[%clk
0:03:01.1]} 4. Nxd4 {[%clk 0:03:00]} 4... g6 {[%clk 0:03:01.6]} 5. Nc3 {[%clk
0:02:59.9]} 5... Bg7 {[%clk 0:03:01.4]} 6. Be3 {[%clk 0:02:57.4]} 6... Nf6
{[%clk 0:03:01.7]} 7. Bc4 {[%clk 0:02:56.7]} 7... O-O {[%clk 0:03:02.1]} 8. Bb3
{[%clk 0:02:56.3]} 8... Re8 {[%clk 0:03:00.5]} 9. O-O {[%clk 0:02:53.2]} 9... d6
{[%clk 0:02:58.6]} 10. h3 {[%clk 0:02:52.7]} 10... Na5 {[%clk 0:02:58.9]} 11.
Qe2 {[%clk 0:02:48.2]} 11... b6 {[%clk 0:02:58.4]} 12. Rad1 {[%clk 0:02:45]}
12... Bb7 {[%clk 0:02:47.3]} 13. Nd5 {[%clk 0:02:36.5]} 13... Nxb3 {[%clk
0:02:45.5]} 14. Nxf6+ {[%clk 0:02:35.9]} 14... Bxf6 {[%clk 0:02:45]} 15. axb3
{[%clk 0:02:36.8]} 15... Bxe4 {[%clk 0:02:44.2]} 16. Rfe1 {[%clk 0:02:30.2]}
16... Bb7 {[%clk 0:02:44]} 17. c3 {[%clk 0:02:29.5]} 17... Qd7 {[%clk
0:02:40.8]} 18. b4 {[%clk 0:02:29.7]} 18... a5 {[%clk 0:02:37.6]} 19. bxa5
{[%clk 0:02:30.6]} 19... bxa5 {[%clk 0:02:38.3]} 20. Ra1 {[%clk 0:02:29.4]}
20... a4 {[%clk 0:02:35.1]} 21. Qc4 {[%clk 0:02:26.8]} 21... Rec8 {[%clk
0:02:19.1]} 22. Qb4 {[%clk 0:02:25.5]} 22... Bd5 {[%clk 0:02:01]} 23. Red1
{[%clk 0:02:04.3]} 23... Qb7 {[%clk 0:01:59.2]} 24. Qxb7 {[%clk 0:01:57.2]}
24... Bxb7 {[%clk 0:01:58.1]} 25. Ra3 {[%clk 0:01:53.9]} 25... Bd5 {[%clk
0:01:56.2]} 26. Rda1 {[%clk 0:01:53.6]} 26... Rcb8 {[%clk 0:01:53.1]} 27. Bc1
{[%clk 0:01:45.3]} 27... Bxd4 {[%clk 0:01:43]} 28. cxd4 {[%clk 0:01:46.2]} 28...
Rb4 {[%clk 0:01:43.4]} 29. Be3 {[%clk 0:01:43.4]} 29... Bb3 {[%clk 0:01:36.9]}
30. Rc1 {[%clk 0:01:39.6]} 30... Rc4 {[%clk 0:01:31.8]} 31. Rxc4 {[%clk
0:01:35.8]} 31... Bxc4 {[%clk 0:01:32.7]} 32. Bd2 {[%clk 0:01:34.8]} 32... Bb3
{[%clk 0:01:31.2]} 33. Ra1 {[%clk 0:01:33.7]} 33... Rc8 {[%clk 0:01:31.3]} 34.
Rc1 {[%clk 0:01:31.6]} 34... Rxc1+ {[%clk 0:01:28.6]} 35. Bxc1 {[%clk
0:01:32.5]} 35... f5 {[%clk 0:01:28.3]} 36. Kf1 {[%clk 0:01:23.2]} 36... Kf7
{[%clk 0:01:28]} 37. Ke2 {[%clk 0:01:23]} 37... Ke6 {[%clk 0:01:28.6]} 38. Kd3
{[%clk 0:01:22.3]} 38... Kd5 {[%clk 0:01:29.5]} 39. Bg5 {[%clk 0:01:18.6]} 39...
e5 {[%clk 0:01:29.4]} 40. dxe5 {[%clk 0:01:16.3]} 40... dxe5 {[%clk 0:01:30.3]}
41. Bf6 {[%clk 0:01:13.1]} 41... Bc4+ {[%clk 0:01:30.1]} 42. Ke3 {[%clk
0:01:09.9]} 42... Bf1 {[%clk 0:01:29.4]} 43. Kf3 {[%clk 0:01:07.5]} 43... Kd4
{[%clk 0:01:23.7]} 44. h4 {[%clk 0:01:04.9]} 44... Bc4 {[%clk 0:01:18.3]} 45. g3
{[%clk 0:00:57.2]} 45... Bd5+ {[%clk 0:01:18.1]} 46. Ke2 {[%clk 0:00:56.7]}
46... Be4 {[%clk 0:01:17]} 47. f4 {[%clk 0:00:55.2]} 47... Bd5 {[%clk
0:01:12.6]} 48. Bxe5+ {[%clk 0:00:54]} 48... Ke4 {[%clk 0:01:13]} 49. Bf6 {[%clk
0:00:53]} 49... Bc4+ {[%clk 0:01:13.1]} 50. Kf2 {[%clk 0:00:52.2]} 50... Bd5
{[%clk 0:01:13.3]} 51. Bg7 {[%clk 0:00:50.9]} 1/2-1/2

[Event "*** Titled Tuesday Blitz"]
[Site "Chess.com"]
[Date "2020.04.07"]
[Round "2"]
[White "Haykos"]
[Black "Paralinch"]
[Result "0-1"]
[WhiteElo "2596"]
[BlackElo "2941"]
[TimeControl "180+1"]
[EndTime "13:18:11 PDT"]
[Termination "Paralinch won by checkmate"]

1. e4 {[%clk 0:03:00.9]} 1... c5 {[%clk 0:02:59.8]} 2. Nf3 {[%clk 0:03:01.2]}
2... e6 {[%clk 0:03:00.3]} 3. d4 {[%clk 0:03:00.2]} 3... cxd4 {[%clk 0:03:01.2]}
4. Nxd4 {[%clk 0:03:01.1]} 4... Nf6 {[%clk 0:03:01.6]} 5. Nc3 {[%clk 0:03:01.5]}
5... Nc6 {[%clk 0:03:02.2]} 6. Be3 {[%clk 0:02:49.1]} 6... Bb4 {[%clk 0:03:01]}
7. Nxc6 {[%clk 0:02:45.6]} 7... bxc6 {[%clk 0:03:01.9]} 8. Bd3 {[%clk
0:02:45.3]} 8... d5 {[%clk 0:03:01.7]} 9. exd5 {[%clk 0:02:44.2]} 9... exd5
{[%clk 0:02:55.6]} 10. a3 {[%clk 0:02:36.6]} 10... Ba5 {[%clk 0:02:48.9]} 11.
Be2 {[%clk 0:02:26]} 11... Ne4 {[%clk 0:02:34.5]} 12. Qd4 {[%clk 0:02:14.6]}
12... O-O {[%clk 0:02:30.4]} 13. O-O {[%clk 0:02:10.9]} 13... c5 {[%clk
0:02:23.1]} 14. Qxd5 {[%clk 0:01:44.3]} 14... Nxc3 {[%clk 0:02:21]} 15. Qxa8
{[%clk 0:01:44.5]} 15... Nxe2+ {[%clk 0:02:20.9]} 16. Kh1 {[%clk 0:01:45.3]}
16... Nd4 {[%clk 0:01:57.1]} 17. b4 {[%clk 0:01:32.1]} 17... Bb6 {[%clk
0:01:31.2]} 18. bxc5 {[%clk 0:01:31.7]} 18... Bxc5 {[%clk 0:01:32.1]} 19. Rfd1
{[%clk 0:01:25.5]} 19... Qf6 {[%clk 0:01:31.9]} 20. Qd5 {[%clk 0:01:12.9]} 20...
Nxc2 {[%clk 0:01:06.1]} 21. Bxc5 {[%clk 0:01:12.7]} 21... Re8 {[%clk 0:00:44.5]}
22. Rac1 {[%clk 0:01:08.8]} 22... Bf5 {[%clk 0:00:44.2]} 23. Qc4 {[%clk
0:00:43.5]} 23... Qg6 {[%clk 0:00:40.3]} 24. f3 {[%clk 0:00:41.1]} 24... h5
{[%clk 0:00:40]} 25. Rd2 {[%clk 0:00:38.9]} 25... Ne1 {[%clk 0:00:37.4]} 26.
Rcd1 {[%clk 0:00:34]} 26... Kh7 {[%clk 0:00:27.2]} 27. Bf2 {[%clk 0:00:27.1]}
27... Qxg2# {[%clk 0:00:22.9]} 0-1

[Event "*** Titled Tuesday Blitz"]
[Site "Chess.com"]
[Date "2020.04.07"]
[Round "2"]
[White "Filip_Covic"]
[Black "DeGrootteZ"]
[Result "0-1"]
[WhiteElo "2342"]
[BlackElo "2691"]
[TimeControl "180+1"]
[EndTime "13:18:12 PDT"]
[Termination "DeGrootteZ won on time"]

1. d4 {[%clk 0:03:00.9]} 1... d5 {[%clk 0:02:59.6]} 2. c4 {[%clk 0:03:00.9]}
2... e6 {[%clk 0:03:00.1]} 3. Nc3 {[%clk 0:03:00.7]} 3... Nf6 {[%clk 0:03:00.2]}
4. cxd5 {[%clk 0:03:00.9]} 4... exd5 {[%clk 0:03:01.1]} 5. Bg5 {[%clk
0:03:00.8]} 5... c6 {[%clk 0:03:01.5]} 6. e3 {[%clk 0:03:01]} 6... Bd6 {[%clk
0:03:02.1]} 7. Bd3 {[%clk 0:03:00]} 7... O-O {[%clk 0:03:02.4]} 8. Nge2 {[%clk
0:03:00.3]} 8... Re8 {[%clk 0:03:01.3]} 9. Qc2 {[%clk 0:02:59.7]} 9... h6 {[%clk
0:03:01]} 10. Bf4 {[%clk 0:02:57.6]} 10... Bf8 {[%clk 0:02:59.9]} 11. h3 {[%clk
0:02:55]} 11... a5 {[%clk 0:02:58.6]} 12. O-O {[%clk 0:02:53.1]} 12... Na6
{[%clk 0:02:58.6]} 13. a3 {[%clk 0:02:51.7]} 13... Nc7 {[%clk 0:02:58.5]} 14.
Rae1 {[%clk 0:02:41.5]} 14... Ne6 {[%clk 0:02:58.3]} 15. Bh2 {[%clk 0:02:41]}
15... b5 {[%clk 0:02:53.8]} 16. Nf4 {[%clk 0:02:37.9]} 16... Ng5 {[%clk
0:02:49.4]} 17. f3 {[%clk 0:02:15.8]} 17... Bd7 {[%clk 0:02:39]} 18. e4 {[%clk
0:01:43.3]} 18... Qb6 {[%clk 0:02:33.1]} 19. Qf2 {[%clk 0:01:25.7]} 19... dxe4
{[%clk 0:02:00.8]} 20. Nxe4 {[%clk 0:01:13.9]} 20... Nd5 {[%clk 0:01:51]} 21.
Nxd5 {[%clk 0:00:51]} 21... cxd5 {[%clk 0:01:51.9]} 22. Nc5 {[%clk 0:00:27.7]}
22... Bxh3 {[%clk 0:01:41.4]} 23. f4 {[%clk 0:00:21.9]} 23... Ne6 {[%clk
0:01:31.6]} 24. Nxe6 {[%clk 0:00:12.5]} 24... Bxe6 {[%clk 0:01:32.5]} 25. f5
{[%clk 0:00:10.9]} 25... Bd7 {[%clk 0:01:32.9]} 26. f6 {[%clk 0:00:07]} 26...
Qxf6 {[%clk 0:01:26.9]} 27. Qxf6 {[%clk 0:00:05.1]} 27... gxf6 {[%clk
0:01:27.8]} 28. Rxe8 {[%clk 0:00:04]} 28... Rxe8 {[%clk 0:01:28.7]} 29. Rxf6
{[%clk 0:00:03.4]} 29... Re6 {[%clk 0:01:26.5]} 30. Rf4 {[%clk 0:00:01.9]} 30...
b4 {[%clk 0:01:21.7]} 31. Rg4+ {[%clk 0:00:01.7]} 31... Kh8 {[%clk 0:01:17.7]}
32. axb4 {[%clk 0:00:02.3]} 32... Re7 {[%clk 0:01:15.8]} 33. Rg3 {[%clk
0:00:02.1]} 33... axb4 {[%clk 0:01:14.5]} 34. Rf3 {[%clk 0:00:02.5]} 34... Bg7
{[%clk 0:01:12]} 35. Rf4 {[%clk 0:00:01.1]} 35... Re3 {[%clk 0:01:08.8]} 0-1

[Event "*** Titled Tuesday Blitz"]
[Site "Chess.com"]
[Date "2020.04.07"]
[Round "2"]
[White "1977Ivan"]
[Black "awesomevishesh"]
[Result "1-0"]
[WhiteElo "2734"]
[BlackElo "2473"]
[TimeControl "180+1"]
[EndTime "13:18:15 PDT"]
[Termination "1977Ivan won on time"]

1. e4 {[%clk 0:03:00.9]} 1... c5 {[%clk 0:02:59.5]} 2. Be2 {[%clk 0:02:59.4]}
2... Nc6 {[%clk 0:02:57]} 3. d3 {[%clk 0:02:55.9]} 3... g6 {[%clk 0:02:50.9]} 4.
f4 {[%clk 0:02:55.7]} 4... Bg7 {[%clk 0:02:50.6]} 5. Nf3 {[%clk 0:02:56.2]} 5...
d6 {[%clk 0:02:44.4]} 6. O-O {[%clk 0:02:56]} 6... Nf6 {[%clk 0:02:39.7]} 7. Qe1
{[%clk 0:02:54.9]} 7... O-O {[%clk 0:02:39.5]} 8. Qh4 {[%clk 0:02:54.4]} 8... b5
{[%clk 0:02:23.6]} 9. f5 {[%clk 0:02:51]} 9... Qb6 {[%clk 0:01:49.7]} 10. Kh1
{[%clk 0:02:38.4]} 10... Nd4 {[%clk 0:01:37.8]} 11. Bd1 {[%clk 0:02:32.7]} 11...
Nxf3 {[%clk 0:01:27.2]} 12. Bxf3 {[%clk 0:02:29.1]} 12... Rb8 {[%clk 0:01:24.6]}
13. Bh6 {[%clk 0:02:21.3]} 13... c4 {[%clk 0:01:18.4]} 14. Nc3 {[%clk
0:02:08.6]} 14... b4 {[%clk 0:01:17]} 15. Ne2 {[%clk 0:02:04.8]} 15... cxd3
{[%clk 0:01:16.4]} 16. cxd3 {[%clk 0:02:04.2]} 16... Ba6 {[%clk 0:01:12.7]} 17.
Rad1 {[%clk 0:01:53.3]} 17... Rbc8 {[%clk 0:01:05.4]} 18. g4 {[%clk 0:01:19.1]}
18... Rc2 {[%clk 0:00:55]} 19. g5 {[%clk 0:01:14]} 19... Nd7 {[%clk 0:00:51.7]}
20. Bxg7 {[%clk 0:01:10.8]} 20... Kxg7 {[%clk 0:00:51.1]} 21. Bg4 {[%clk
0:00:58]} 21... gxf5 {[%clk 0:00:07.8]} 22. Bxf5 {[%clk 0:00:54.5]} 22... Rh8
{[%clk 0:00:02.6]} 23. Nf4 {[%clk 0:00:46]} 23... Ne5 {[%clk 0:00:02.2]} 24.
Qh6+ {[%clk 0:00:43.6]} 24... Kg8 {[%clk 0:00:02.3]} 25. Nh5 {[%clk 0:00:44.1]}
1-0

[Event "*** Titled Tuesday Blitz"]
[Site "Chess.com"]
[Date "2020.04.07"]
[Round "2"]
[White "VitaliyBernadskiy"]
[Black "GameOverBro"]
[Result "1-0"]
[WhiteElo "2736"]
[BlackElo "2498"]
[TimeControl "180+1"]
[EndTime "13:18:16 PDT"]
[Termination "VitaliyBernadskiy won by resignation"]

1. e4 {[%clk 0:03:00.9]} 1... d6 {[%clk 0:03:00.3]} 2. d4 {[%clk 0:03:00.7]}
2... Nf6 {[%clk 0:03:00.8]} 3. Nc3 {[%clk 0:03:01.2]} 3... e5 {[%clk 0:03:01.1]}
4. Nf3 {[%clk 0:03:00.7]} 4... Nbd7 {[%clk 0:03:01.1]} 5. Bc4 {[%clk 0:03:01.1]}
5... Be7 {[%clk 0:03:01.6]} 6. O-O {[%clk 0:03:01.3]} 6... c6 {[%clk 0:03:01.9]}
7. Re1 {[%clk 0:03:00.9]} 7... h6 {[%clk 0:03:02.5]} 8. a4 {[%clk 0:03:00.4]}
8... Qc7 {[%clk 0:03:03]} 9. Be3 {[%clk 0:02:59.8]} 9... Nf8 {[%clk 0:03:03.6]}
10. a5 {[%clk 0:02:56.9]} 10... Ng6 {[%clk 0:03:03.9]} 11. a6 {[%clk 0:02:56.4]}
11... b5 {[%clk 0:03:03.4]} 12. Bb3 {[%clk 0:02:52]} 12... O-O {[%clk 0:03:02]}
13. h3 {[%clk 0:02:49.7]} 13... Rb8 {[%clk 0:02:56.3]} 14. Nd2 {[%clk
0:02:33.2]} 14... exd4 {[%clk 0:02:47.5]} 15. Bxd4 {[%clk 0:02:33.1]} 15... Be6
{[%clk 0:02:18.1]} 16. Be3 {[%clk 0:02:15.5]} 16... c5 {[%clk 0:02:00.3]} 17.
Nd5 {[%clk 0:02:10.8]} 17... Bxd5 {[%clk 0:01:57.3]} 18. Bxd5 {[%clk 0:02:11.7]}
18... Nxd5 {[%clk 0:01:56.7]} 19. exd5 {[%clk 0:02:12.6]} 19... Bf6 {[%clk
0:01:52.7]} 20. c3 {[%clk 0:02:12.7]} 20... Rfe8 {[%clk 0:01:48.5]} 21. Nb3
{[%clk 0:02:00.2]} 21... Ne5 {[%clk 0:01:44.3]} 22. Na5 {[%clk 0:01:57.9]} 22...
Nc4 {[%clk 0:01:16.4]} 23. Nxc4 {[%clk 0:01:55.2]} 23... bxc4 {[%clk 0:01:17.3]}
24. Re2 {[%clk 0:01:53.1]} 24... Re4 {[%clk 0:01:17.2]} 25. Qa4 {[%clk
0:01:50.3]} 25... Qb6 {[%clk 0:01:11.8]} 26. Rae1 {[%clk 0:01:48.5]} 26... Qb3
{[%clk 0:01:05.4]} 27. Qd7 {[%clk 0:01:43.2]} 27... Qb6 {[%clk 0:00:49.1]} 28.
Qa4 {[%clk 0:01:21.3]} 28... Rbe8 {[%clk 0:00:41.8]} 29. Kf1 {[%clk 0:01:14.2]}
29... Qc7 {[%clk 0:00:37.6]} 30. Bc1 {[%clk 0:01:08.1]} 30... Rxe2 {[%clk
0:00:37]} 31. Rxe2 {[%clk 0:01:09]} 31... Rxe2 {[%clk 0:00:37.3]} 32. Kxe2
{[%clk 0:01:09.9]} 32... Kf8 {[%clk 0:00:37.8]} 33. Qxc4 {[%clk 0:01:06]} 33...
Be5 {[%clk 0:00:37]} 34. Be3 {[%clk 0:01:04.7]} 34... h5 {[%clk 0:00:35.2]} 35.
b4 {[%clk 0:01:04.4]} 35... Qe7 {[%clk 0:00:27.1]} 36. bxc5 {[%clk 0:01:03]}
36... dxc5 {[%clk 0:00:27.6]} 37. Qxc5 {[%clk 0:01:00.8]} 37... Bd6 {[%clk
0:00:27.6]} 38. Qc8+ {[%clk 0:00:59.6]} 1-0

[Event "*** Titled Tuesday Blitz"]
[Site "Chess.com"]
[Date "2020.04.07"]
[Round "2"]
[White "KarstenHansch"]
[Black "XDPS"]
[Result "0-1"]
[WhiteElo "2403"]
[BlackElo "2704"]
[TimeControl "180+1"]
[EndTime "13:18:16 PDT"]
[Termination "XDPS won by resignation"]

1. e4 {[%clk 0:03:00.9]} 1... c5 {[%clk 0:02:58.3]} 2. Nf3 {[%clk 0:03:00.5]}
2... d6 {[%clk 0:02:58.4]} 3. Bb5+ {[%clk 0:03:00.3]} 3... Bd7 {[%clk
0:02:57.6]} 4. Bxd7+ {[%clk 0:02:59.7]} 4... Nxd7 {[%clk 0:02:58.5]} 5. O-O
{[%clk 0:02:58.8]} 5... Ngf6 {[%clk 0:02:59]} 6. Qe2 {[%clk 0:02:58.5]} 6... e6
{[%clk 0:02:59.5]} 7. c3 {[%clk 0:02:54.6]} 7... Be7 {[%clk 0:02:59.9]} 8. d4
{[%clk 0:02:52]} 8... O-O {[%clk 0:03:00.3]} 9. Bg5 {[%clk 0:02:44.7]} 9... Rc8
{[%clk 0:02:57]} 10. Nbd2 {[%clk 0:02:42.6]} 10... a6 {[%clk 0:02:54.6]} 11.
Rad1 {[%clk 0:02:34.2]} 11... Re8 {[%clk 0:02:48.4]} 12. dxc5 {[%clk 0:02:26.4]}
12... Rxc5 {[%clk 0:02:44.7]} 13. Nb3 {[%clk 0:02:19.4]} 13... Rc7 {[%clk
0:02:44.5]} 14. e5 {[%clk 0:02:17.2]} 14... dxe5 {[%clk 0:02:44.1]} 15. Nxe5
{[%clk 0:02:10.8]} 15... Qc8 {[%clk 0:02:43.9]} 16. Nxd7 {[%clk 0:02:05]} 16...
Rxd7 {[%clk 0:02:43.8]} 17. Rxd7 {[%clk 0:02:04.4]} 17... Qxd7 {[%clk
0:02:40.2]} 18. Rd1 {[%clk 0:02:03.7]} 18... Qc7 {[%clk 0:02:40.6]} 19. Bh4
{[%clk 0:01:56.3]} 19... Rd8 {[%clk 0:02:37.6]} 20. Bg3 {[%clk 0:01:55.5]} 20...
Qc8 {[%clk 0:02:34.1]} 21. Rxd8+ {[%clk 0:01:53.6]} 21... Qxd8 {[%clk
0:02:33.3]} 22. Qd2 {[%clk 0:01:53.7]} 22... Qxd2 {[%clk 0:02:20.5]} 23. Nxd2
{[%clk 0:01:53.2]} 23... Kf8 {[%clk 0:02:19.6]} 24. f3 {[%clk 0:01:51.2]} 24...
Ke8 {[%clk 0:02:19.8]} 25. Kf2 {[%clk 0:01:50.8]} 25... Bc5+ {[%clk 0:02:18.6]}
26. Ke2 {[%clk 0:01:50.5]} 26... Kd7 {[%clk 0:02:15.9]} 27. Be5 {[%clk
0:01:50.4]} 27... Be7 {[%clk 0:02:14.7]} 28. Kd3 {[%clk 0:01:47.4]} 28... Ne8
{[%clk 0:02:14.4]} 29. Bd4 {[%clk 0:01:44.2]} 29... f6 {[%clk 0:02:14.5]} 30.
Ne4 {[%clk 0:01:41.4]} 30... Kc6 {[%clk 0:02:12.3]} 31. f4 {[%clk 0:01:37.6]}
31... Nc7 {[%clk 0:02:10.3]} 32. g3 {[%clk 0:01:35.9]} 32... Nd5 {[%clk
0:02:08.2]} 33. a3 {[%clk 0:01:33.4]} 33... Bd8 {[%clk 0:01:59.2]} 34. c4 {[%clk
0:01:32.4]} 34... Nc7 {[%clk 0:01:53.7]} 35. b4 {[%clk 0:01:29]} 35... b5 {[%clk
0:01:54]} 36. Bc5 {[%clk 0:01:23.6]} 36... f5 {[%clk 0:01:45.4]} 37. Nc3 {[%clk
0:01:04.9]} 37... g5 {[%clk 0:01:45.1]} 38. cxb5+ {[%clk 0:00:59.6]} 38... axb5
{[%clk 0:01:42.7]} 39. fxg5 {[%clk 0:00:56.2]} 39... Bxg5 {[%clk 0:01:41.1]} 40.
a4 {[%clk 0:00:55.9]} 40... bxa4 {[%clk 0:01:40]} 41. Nxa4 {[%clk 0:00:56]}
41... e5 {[%clk 0:01:40.2]} 42. g4 {[%clk 0:00:48.3]} 42... e4+ {[%clk
0:01:31.8]} 43. Kd4 {[%clk 0:00:41.8]} 43... Bf6+ {[%clk 0:01:31]} 44. Ke3
{[%clk 0:00:37.5]} 44... Nd5+ {[%clk 0:01:29.5]} 45. Kf2 {[%clk 0:00:36.8]}
45... f4 {[%clk 0:01:23.5]} 46. Bf8 {[%clk 0:00:35.1]} 46... Bh4+ {[%clk
0:01:21.9]} 47. Ke2 {[%clk 0:00:34.4]} 47... f3+ {[%clk 0:01:21.2]} 48. Kd2
{[%clk 0:00:31.1]} 48... e3+ {[%clk 0:01:22.1]} 0-1